[Event "Swedish Chess Championship 2021: Sverigemastarklassen"]
[Site "Scandic Helsingborg Nord, Florettgatan 41, Helsingborg, Sweden"]
[Date "2021.07.07"]
[Round "5.3"]
[White "Smith, Axel"]
[Black "Cramling, Pia"]
[Result "1/2-1/2"]
[TimeControl "90 minutes for 40 moves + 30 minutes for the rest of the game + 30 seconds per move from move one."]
[WhiteTitle "GM"]
[BlackTitle "GM"]
[WhiteFideId "1707930"]
[BlackFideId "1700030"]
[WhiteElo "2453"]
[BlackElo "2459"]

1. d4 {[%clk 01:30:55]} {[%emt 00:00:04]} Nf6 {[%clk 01:30:47]} {[%emt
00:00:13]} 2. c4 {[%clk 01:31:22]} {[%emt 00:00:04]} e6 {[%clk 01:31:09]}
{[%emt 00:00:07]} 3. Nc3 {[%clk 01:31:48]} {[%emt 00:00:05]} Bb4 {[%clk
01:31:28]} {[%emt 00:00:10]} 4. f3 {[%clk 01:32:13]} {[%emt 00:00:05]} c5
{[%clk 01:31:43]} {[%emt 00:00:14]} 5. d5 {[%clk 01:32:41]} {[%emt 00:00:03]}
d6 {[%clk 01:29:47]} {[%emt 00:02:25]} 6. e4 {[%clk 01:33:07]} {[%emt
00:00:05]} O-O {[%clk 01:30:00]} {[%emt 00:00:17]} 7. Nge2 {[%clk 01:32:49]}
{[%emt 00:00:48]} exd5 {[%clk 01:28:49]} {[%emt 00:01:40]} 8. cxd5 {[%clk
01:32:48]} {[%emt 00:00:32]} a6 {[%clk 01:27:35]} {[%emt 00:01:44]} 9. Ng3
{[%clk 01:31:49]} {[%emt 00:01:29]} Nbd7 {[%clk 01:23:50]} {[%emt 00:04:15]} 10.
Be2 {[%clk 01:31:36]} {[%emt 00:00:43]} b5 {[%clk 01:22:12]} {[%emt 00:02:08]}
11. O-O {[%clk 01:31:53]} {[%emt 00:00:13]} Ba5 {[%clk 01:19:48]} {[%emt
00:02:54]} 12. Kh1 {[%clk 01:24:47]} {[%emt 00:07:37]} c4 {[%clk 00:51:25]}
{[%emt 00:28:52]} 13. Nf5 {[%clk 01:15:15]} {[%emt 00:10:02]} Nc5 {[%clk
00:48:49]} {[%emt 00:03:06]} 14. Nd4 {[%clk 01:14:13]} {[%emt 00:01:34]} Bd7
{[%clk 00:45:09]} {[%emt 00:04:09]} 15. Bg5 {[%clk 01:03:56]} {[%emt 00:10:47]}
Rc8 {[%clk 00:40:09]} {[%emt 00:05:29]} 16. Rc1 {[%clk 00:59:53]} {[%emt
00:04:35]} h6 {[%clk 00:38:43]} {[%emt 00:01:56]} 17. Bh4 {[%clk 00:59:36]}
{[%emt 00:00:48]} Qe7 {[%clk 00:29:14]} {[%emt 00:09:57]} 18. b3 {[%clk
00:50:27]} {[%emt 00:09:40]} Rc7 {[%clk 00:22:16]} {[%emt 00:07:27]} 19. bxc4
{[%clk 00:47:12]} {[%emt 00:03:46]} bxc4 {[%clk 00:22:32]} {[%emt 00:00:14]} 20.
Bxc4 {[%clk 00:43:36]} {[%emt 00:04:07]} Rfc8 {[%clk 00:22:28]} {[%emt
00:00:33]} 21. Nc6 {[%clk 00:36:19]} {[%emt 00:07:47]} Bxc6 {[%clk 00:22:45]}
{[%emt 00:00:13]} 22. dxc6 {[%clk 00:36:47]} {[%emt 00:00:02]} Bxc3 {[%clk
00:20:29]} {[%emt 00:02:46]} 23. Rxc3 {[%clk 00:37:16]} {[%emt 00:00:01]} Rxc6
{[%clk 00:20:49]} {[%emt 00:00:09]} 24. Bd5 {[%clk 00:31:32]} {[%emt 00:06:14]}
R6c7 {[%clk 00:20:57]} {[%emt 00:00:20]} 25. Qd4 {[%clk 00:29:28]} {[%emt
00:02:35]} g5 {[%clk 00:15:05]} {[%emt 00:06:22]} 26. Be1 {[%clk 00:21:33]}
{[%emt 00:08:26]} Nxd5 {[%clk 00:15:05]} {[%emt 00:00:29]} 27. Qxd5 {[%clk
00:21:15]} {[%emt 00:00:50]} Qe5 {[%clk 00:13:59]} {[%emt 00:01:34]} 28. Qd2
{[%clk 00:15:59]} {[%emt 00:05:48]} Qe6 {[%clk 00:12:12]} {[%emt 00:02:16]} 29.
Qc2 {[%clk 00:15:20]} {[%emt 00:01:10]} Qd7 {[%clk 00:11:34]} {[%emt 00:01:06]}
30. Kg1 {[%clk 00:13:17]} {[%emt 00:02:35]} Ne6 {[%clk 00:10:53]} {[%emt
00:01:11]} 31. Rxc7 {[%clk 00:13:25]} {[%emt 00:00:23]} Rxc7 {[%clk 00:11:18]}
{[%emt 00:00:04]} 32. Qd1 {[%clk 00:11:09]} {[%emt 00:02:46]} Rc4 {[%clk
00:06:16]} {[%emt 00:05:32]} 33. Bg3 {[%clk 00:09:15]} {[%emt 00:02:24]} Rd4
{[%clk 00:05:44]} {[%emt 00:01:02]} 34. Qb3 {[%clk 00:06:34]} {[%emt 00:03:13]}
Qc6 {[%clk 00:05:48]} {[%emt 00:00:22]} 35. Rd1 {[%clk 00:04:17]} {[%emt
00:02:50]} Qc5 {[%clk 00:04:20]} {[%emt 00:01:57]} 36. Bf2 {[%clk 00:03:58]}
{[%emt 00:00:51]} Rxd1+ {[%clk 00:04:43]} {[%emt 00:00:06]} 37. Qxd1 {[%clk
00:04:27]} {[%emt 00:00:01]} Qc4 {[%clk 00:04:58]} {[%emt 00:00:14]} 38. Qd2
{[%clk 00:02:25]} {[%emt 00:02:33]} Nf4 {[%clk 00:05:00]} {[%emt 00:00:25]} 39.
g3 {[%clk 00:01:36]} {[%emt 00:01:22]} Nh3+ {[%clk 00:03:19]} {[%emt 00:02:10]}
40. Kg2 {[%clk 00:02:05]} {[%emt 00:00:02]} Nxf2 {[%clk 00:03:38]} {[%emt
00:00:11]} 41. Kxf2 {[%clk 00:01:46]} {[%emt 00:00:50]} Qc5+ {[%clk 00:30:29]}
{[%emt 00:03:38]} 42. Kg2 {[%clk 00:31:04]} {[%emt 00:01:11]} Kg7 {[%clk
00:24:38]} {[%emt 00:06:17]} 43. h4 {[%clk 00:27:49]} {[%emt 00:03:50]} gxh4
{[%clk 00:21:34]} {[%emt 00:03:33]} 44. gxh4 {[%clk 00:28:16]} {[%emt
00:00:04]} a5 {[%clk 00:19:56]} {[%emt 00:02:07]} 45. a4 {[%clk 00:25:01]}
{[%emt 00:03:46]} Qe5 {[%clk 00:15:47]} {[%emt 00:04:36]} 46. Qd3 {[%clk
00:19:31]} {[%emt 00:06:02]} Qb2+ {[%clk 00:13:35]} {[%emt 00:02:43]} 47. Kh3
{[%clk 00:18:40]} {[%emt 00:01:21]} Qb4 {[%clk 00:13:26]} {[%emt 00:00:39]} 48.
Qb5 {[%clk 00:13:25]} {[%emt 00:05:46]} Qd2 {[%clk 00:12:31]} {[%emt 00:01:23]}
49. Qd7 {[%clk 00:10:24]} {[%emt 00:03:34]} Qb4 {[%clk 00:10:46]} {[%emt
00:02:14]} 50. Kg4 {[%clk 00:08:46]} {[%emt 00:02:07]} Qd4 {[%clk 00:09:50]}
{[%emt 00:01:24]} 51. Kh3 {[%clk 00:07:41]} {[%emt 00:01:39]} Qb4 {[%clk
00:08:35]} {[%emt 00:01:45]} 52. Qg4+ {[%clk 00:06:23]} {[%emt 00:01:48]} Kh7
{[%clk 00:07:44]} {[%emt 00:01:18]} 53. Qf5+ {[%clk 00:04:53]} {[%emt
00:02:02]} Kg7 {[%clk 00:07:56]} {[%emt 00:00:17]} 54. Qg4+ {[%clk 00:04:29]}
{[%emt 00:00:56]} Kh7 {[%clk 00:08:04]} {[%emt 00:00:19]} 55. Qf5+ {[%clk
00:04:55]} {[%emt 00:00:07]} Kg7 {[%clk 00:08:26]} {[%emt 00:00:07]} 56. e5
{[%clk 00:03:58]} {[%emt 00:01:28]} dxe5 {[%clk 00:08:17]} {[%emt 00:00:39]} 57.
Qxe5+ {[%clk 00:04:26]} {[%emt 00:00:02]} Kg8 {[%clk 00:08:10]} {[%emt
00:00:33]} 58. Qe4 {[%clk 00:03:20]} {[%emt 00:01:40]} Kg7 {[%clk 00:07:18]}
{[%emt 00:01:21]} 59. Qe5+ {[%clk 00:02:43]} {[%emt 00:01:07]} Kg8 {[%clk
00:07:37]} {[%emt 00:00:09]} 60. Qe8+ {[%clk 00:02:32]} {[%emt 00:00:42]} Kg7
{[%clk 00:08:01]} {[%emt 00:00:06]} 61. Qe5+ {[%clk 00:02:56]} {[%emt
00:00:06]} Kg8 {[%clk 00:08:11]} {[%emt 00:00:20]} 62. Qe4 {[%clk 00:03:07]}
{[%emt 00:00:20]} Kg7 {[%clk 00:08:34]} {[%emt 00:00:06]} 63. Qg4+ {[%clk
00:02:13]} {[%emt 00:01:24]} Kh7 {[%clk 00:08:50]} {[%emt 00:00:09]} 64. Qf5+
{[%clk 00:01:46]} {[%emt 00:01:03]} Kg7 {[%clk 00:09:13]} {[%emt 00:00:06]} 65.
Qg4+ {[%clk 00:02:12]} {[%emt 00:00:04]} Kh7 {[%clk 00:09:19]} {[%emt
00:00:23]} 66. Qxb4 {[%clk 00:01:17]} {[%emt 00:01:26]} axb4 {[%clk 00:09:37]}
{[%emt 00:00:12]} 67. a5 {[%clk 00:01:45]} {[%emt 00:00:02]} b3 {[%clk
00:09:59]} {[%emt 00:00:07]} 68. a6 {[%clk 00:02:13]} {[%emt 00:00:02]} b2
{[%clk 00:10:20]} {[%emt 00:00:08]} 69. a7 {[%clk 00:02:42]} {[%emt 00:00:02]}
b1=Q {[%clk 00:10:30]} {[%emt 00:00:19]} 70. a8=Q {[%clk 00:03:10]} {[%emt
00:00:04]} Qh1+ {[%clk 00:07:54]} {[%emt 00:03:04]} 71. Kg3 {[%clk 00:03:38]}
{[%emt 00:00:04]} Qg1+ {[%clk 00:07:48]} {[%emt 00:00:33]} 72. Kh3 {[%clk
00:04:06]} {[%emt 00:00:04]} Qh1+ {[%clk 00:07:40]} {[%emt 00:00:37]} 73. Kg3
{[%clk 00:04:34]} {[%emt 00:00:03]} Qg1+ {[%clk 00:07:58]} {[%emt 00:00:12]} 74.
Kh3 {[%clk 00:05:01]} {[%emt 00:00:02]} 1/2-1/2

[Event "Swedish Chess Championship 2021: Sverigemastarklassen"]
[Site "Scandic Helsingborg Nord, Florettgatan 41, Helsingborg, Sweden"]
[Date "2021.07.07"]
[Round "5.4"]
[White "Hector, Jonny"]
[Black "Storme, Isak"]
[Result "0-1"]
[TimeControl "90 minutes for 40 moves + 30 minutes for the rest of the game + 30 seconds per move from move one."]
[WhiteTitle "GM"]
[BlackTitle "FM"]
[WhiteFideId "1700090"]
[BlackFideId "1728113"]
[WhiteElo "2479"]
[BlackElo "2397"]

1. e4 {[%clk 01:30:54]} {[%emt 00:00:04]} c5 {[%clk 01:30:55]} {[%emt
00:00:07]} 2. Nf3 {[%clk 01:31:16]} {[%emt 00:00:07]} d6 {[%clk 01:31:15]}
{[%emt 00:00:11]} 3. d4 {[%clk 01:31:37]} {[%emt 00:00:08]} cxd4 {[%clk
01:31:38]} {[%emt 00:00:07]} 4. Nxd4 {[%clk 01:32:01]} {[%emt 00:00:05]} Nf6
{[%clk 01:32:00]} {[%emt 00:00:09]} 5. Nc3 {[%clk 01:32:25]} {[%emt 00:00:05]}
a6 {[%clk 01:32:17]} {[%emt 00:00:14]} 6. Bg5 {[%clk 01:32:37]} {[%emt
00:00:16]} e6 {[%clk 01:32:35]} {[%emt 00:00:13]} 7. f4 {[%clk 01:32:48]}
{[%emt 00:00:19]} Be7 {[%clk 01:32:25]} {[%emt 00:00:40]} 8. Qf3 {[%clk
01:32:38]} {[%emt 00:00:38]} Qc7 {[%clk 01:32:37]} {[%emt 00:00:20]} 9. O-O-O
{[%clk 01:30:29]} {[%emt 00:02:39]} Nbd7 {[%clk 01:32:32]} {[%emt 00:00:36]} 10.
g4 {[%clk 01:25:51]} {[%emt 00:05:07]} h6 {[%clk 01:32:11]} {[%emt 00:00:52]}
11. Bxf6 {[%clk 01:21:32]} {[%emt 00:04:48]} Bxf6 {[%clk 01:32:14]} {[%emt
00:00:28]} 12. h4 {[%clk 01:17:01]} {[%emt 00:05:01]} Nb6 {[%clk 01:30:20]}
{[%emt 00:02:24]} 13. g5 {[%clk 01:12:23]} {[%emt 00:05:06]} Bxd4 {[%clk
01:29:39]} {[%emt 00:01:12]} 14. Rxd4 {[%clk 01:12:43]} {[%emt 00:00:10]} Qc5
{[%clk 01:29:32]} {[%emt 00:00:37]} 15. Rd3 {[%clk 01:00:28]} {[%emt 00:12:45]}
Bd7 {[%clk 01:25:37]} {[%emt 00:04:26]} 16. Bh3 {[%clk 00:52:15]} {[%emt
00:08:42]} Bb5 {[%clk 01:13:03]} {[%emt 00:13:05]} 17. Nxb5 {[%clk 00:41:31]}
{[%emt 00:11:14]} axb5 {[%clk 01:10:40]} {[%emt 00:02:53]} 18. g6 {[%clk
00:38:58]} {[%emt 00:03:03]} Rxa2 {[%clk 00:39:53]} {[%emt 00:31:18]} 19. Kb1
{[%clk 00:39:01]} {[%emt 00:00:26]} Ra7 {[%clk 00:27:30]} {[%emt 00:12:54]} 20.
gxf7+ {[%clk 00:35:08]} {[%emt 00:04:23]} Ke7 {[%clk 00:26:37]} {[%emt
00:01:23]} 21. c3 {[%clk 00:14:30]} {[%emt 00:21:08]} Qc4 {[%clk 00:26:00]}
{[%emt 00:01:07]} 22. Kc2 {[%clk 00:08:06]} {[%emt 00:06:54]} Qa4+ {[%clk
00:21:37]} {[%emt 00:04:54]} 23. Kd2 {[%clk 00:08:26]} {[%emt 00:00:10]} Nc4+
{[%clk 00:21:51]} {[%emt 00:00:16]} 24. Ke1 {[%clk 00:08:50]} {[%emt 00:00:05]}
Qc2 {[%clk 00:20:27]} {[%emt 00:01:54]} 25. Rd1 {[%clk 00:08:14]} {[%emt
00:01:05]} Qxb2 {[%clk 00:16:14]} {[%emt 00:04:45]} 26. e5 {[%clk 00:05:50]}
{[%emt 00:02:53]} d5 {[%clk 00:08:45]} {[%emt 00:07:59]} 27. f5 {[%clk
00:04:19]} {[%emt 00:02:01]} exf5 {[%clk 00:08:46]} {[%emt 00:00:30]} 28. Rg1
{[%clk 00:03:40]} {[%emt 00:01:07]} Qc2 {[%clk 00:02:48]} {[%emt 00:06:29]} 29.
Bxf5 {[%clk 00:03:36]} {[%emt 00:00:34]} Nxe5 {[%clk 00:02:36]} {[%emt
00:00:43]} 30. Qxd5 {[%clk 00:01:38]} {[%emt 00:02:28]} Qxf5 {[%clk 00:01:14]}
{[%emt 00:01:51]} 31. Rf1 {[%clk 00:00:55]} {[%emt 00:01:13]} Nd3+ {[%clk
00:00:54]} {[%emt 00:00:50]} 32. Rxd3 {[%clk 00:00:47]} {[%emt 00:00:38]} Ra1+
{[%clk 00:01:11]} {[%emt 00:00:13]} 33. Kd2 {[%clk 00:01:09]} {[%emt 00:00:08]}
Qxd5 {[%clk 00:01:12]} {[%emt 00:00:29]} 0-1

[Event "Swedish Chess Championship 2021: Sverigemastarklassen"]
[Site "Scandic Helsingborg Nord, Florettgatan 41, Helsingborg, Sweden"]
[Date "2021.07.07"]
[Round "5.5"]
[White "Westerberg, Jonathan"]
[Black "Wiedenkeller, Michael"]
[Result "1-0"]
[TimeControl "90 minutes for 40 moves + 30 minutes for the rest of the game + 30 seconds per move from move one."]
[WhiteTitle "GM"]
[BlackTitle "IM"]
[WhiteFideId "1701754"]
[BlackFideId "1700146"]
[WhiteElo "2534"]
[BlackElo "2445"]

1. c4 {[%clk 01:28:02]} {[%emt 00:02:55]} e5 {[%clk 01:30:04]} {[%emt
00:00:57]} 2. g3 {[%clk 01:26:06]} {[%emt 00:02:26]} Nf6 {[%clk 01:29:10]}
{[%emt 00:01:25]} 3. Bg2 {[%clk 01:26:28]} {[%emt 00:00:08]} c6 {[%clk
01:27:50]} {[%emt 00:01:49]} 4. Nf3 {[%clk 01:26:51]} {[%emt 00:00:07]} e4
{[%clk 01:26:48]} {[%emt 00:01:32]} 5. Nd4 {[%clk 01:27:17]} {[%emt 00:00:04]}
Qb6 {[%clk 01:23:35]} {[%emt 00:03:43]} 6. Nc2 {[%clk 01:26:42]} {[%emt
00:01:04]} d5 {[%clk 01:22:52]} {[%emt 00:01:14]} 7. cxd5 {[%clk 01:25:53]}
{[%emt 00:01:19]} cxd5 {[%clk 01:22:49]} {[%emt 00:00:32]} 8. O-O {[%clk
01:21:46]} {[%emt 00:04:37]} Be7 {[%clk 01:19:16]} {[%emt 00:04:03]} 9. Nc3
{[%clk 01:19:36]} {[%emt 00:02:41]} O-O {[%clk 01:17:22]} {[%emt 00:02:23]} 10.
d3 {[%clk 01:17:27]} {[%emt 00:02:39]} Nc6 {[%clk 01:16:07]} {[%emt 00:01:45]}
11. dxe4 {[%clk 01:09:45]} {[%emt 00:08:13]} dxe4 {[%clk 01:14:52]} {[%emt
00:01:45]} 12. Nd5 {[%emt 00:02:16]} Nxd5 {[%clk 01:07:08]} {[%emt 00:08:13]}
13. Qxd5 {[%clk 01:08:24]} {[%emt 00:00:05]} Be6 {[%clk 01:06:19]} {[%emt
00:01:19]} 14. Qxe4 {[%clk 01:05:09]} {[%emt 00:03:45]} Rad8 {[%clk 00:58:53]}
{[%emt 00:07:56]} 15. Qa4 {[%clk 01:01:13]} {[%emt 00:04:26]} Nd4 {[%clk
00:50:51]} {[%emt 00:08:32]} 16. Nxd4 {[%clk 00:59:11]} {[%emt 00:02:33]} Rxd4
{[%clk 00:47:40]} {[%emt 00:03:41]} 17. Qc2 {[%clk 00:59:20]} {[%emt 00:00:20]}
Rc8 {[%clk 00:47:23]} {[%emt 00:00:47]} 18. Qb1 {[%clk 00:59:20]} {[%emt
00:00:30]} Qb5 {[%clk 00:44:09]} {[%emt 00:03:44]} 19. e3 {[%clk 00:47:12]}
{[%emt 00:12:38]} Rb4 {[%clk 00:26:53]} {[%emt 00:17:45]} 20. b3 {[%clk
00:36:23]} {[%emt 00:11:19]} Bf6 {[%clk 00:24:48]} {[%emt 00:02:35]} 21. Ba3
{[%clk 00:34:59]} {[%emt 00:01:54]} Bf5 {[%clk 00:17:16]} {[%emt 00:08:02]} 22.
e4 {[%clk 00:34:35]} {[%emt 00:00:54]} Bxa1 {[%clk 00:13:27]} {[%emt 00:04:18]}
23. Bxb4 {[%clk 00:33:12]} {[%emt 00:01:54]} Qxb4 {[%clk 00:08:22]} {[%emt
00:05:36]} 24. Qxa1 {[%clk 00:25:08]} {[%emt 00:08:35]} Bxe4 {[%clk 00:08:23]}
{[%emt 00:00:28]} 25. a3 {[%clk 00:24:47]} {[%emt 00:00:51]} Qe7 {[%clk
00:08:45]} {[%emt 00:00:07]} 26. Re1 {[%clk 00:22:15]} {[%emt 00:03:02]} f5
{[%clk 00:09:05]} {[%emt 00:00:11]} 27. b4 {[%clk 00:21:12]} {[%emt 00:01:34]}
Qe6 {[%clk 00:02:16]} {[%emt 00:07:18]} 28. Bxe4 {[%clk 00:20:06]} {[%emt
00:01:36]} fxe4 {[%clk 00:02:38]} {[%emt 00:00:08]} 29. Qd4 {[%clk 00:20:34]}
{[%emt 00:00:02]} Re8 {[%clk 00:00:55]} {[%emt 00:02:13]} 30. Qxa7 {[%clk
00:20:23]} {[%emt 00:00:41]} b6 {[%clk 00:00:48]} {[%emt 00:00:37]} 31. Qa4
{[%clk 00:17:37]} {[%emt 00:03:16]} h5 {[%clk 00:00:35]} {[%emt 00:00:43]} 32.
h4 {[%clk 00:15:26]} {[%emt 00:02:40]} Rc8 {[%clk 00:00:42]} {[%emt 00:00:24]}
33. Qb5 {[%clk 00:14:16]} {[%emt 00:01:40]} Rc3 {[%clk 00:00:45]} {[%emt
00:00:26]} 34. Rd1 {[%clk 00:09:21]} {[%emt 00:05:25]} Rc8 {[%clk 00:00:31]}
{[%emt 00:00:45]} 35. Qd5 {[%clk 00:07:37]} {[%emt 00:02:13]} Qxd5 {[%clk
00:00:41]} {[%emt 00:00:20]} 36. Rxd5 {[%clk 00:08:04]} {[%emt 00:00:04]} Rc3
{[%clk 00:01:00]} {[%emt 00:00:11]} 37. Rxh5 {[%clk 00:05:53]} {[%emt
00:02:41]} e3 {[%clk 00:01:11]} {[%emt 00:00:19]} 38. fxe3 {[%clk 00:05:56]}
{[%emt 00:00:26]} Rxe3 {[%clk 00:01:39]} {[%emt 00:00:02]} 39. Kf2 {[%clk
00:05:59]} {[%emt 00:00:27]} Rxa3 {[%clk 00:02:01]} {[%emt 00:00:09]} 40. Rb5
{[%clk 00:06:21]} {[%emt 00:00:07]} Ra6 {[%clk 00:00:56]} {[%emt 00:01:36]} 41.
Kf3 {[%clk 00:06:28]} {[%emt 00:00:23]} Kf7 {[%clk 00:00:56]} {[%emt 00:00:29]}
42. Kg4 {[%clk 00:02:51]} {[%emt 00:04:06]} Kg6 {[%clk 00:30:11]} {[%emt
00:01:15]} 43. h5+ {[%clk 00:32:14]} {[%emt 00:01:07]} Kh6 {[%clk 00:29:18]}
{[%emt 00:01:24]} 44. Rd5 {[%clk 00:31:10]} {[%emt 00:01:32]} b5 {[%clk
00:26:24]} {[%emt 00:03:26]} 45. Rxb5 {[%clk 00:31:22]} {[%emt 00:00:18]} Rd6
{[%clk 00:26:49]} {[%emt 00:00:06]} 46. Rb8 {[%clk 00:31:11]} {[%emt 00:00:41]}
g6 {[%clk 00:26:08]} {[%emt 00:01:12]} 47. hxg6 {[%clk 00:30:32]} {[%emt
00:01:09]} Kxg6 {[%clk 00:26:33]} {[%emt 00:00:05]} 48. Kf4 {[%clk 00:30:45]}
{[%emt 00:00:16]} Kf7 {[%clk 00:26:38]} {[%emt 00:00:26]} 49. Rb7+ {[%clk
00:30:00]} {[%emt 00:01:15]} Ke6 {[%clk 00:26:45]} {[%emt 00:00:23]} 50. g4
{[%clk 00:28:44]} {[%emt 00:01:45]} Rd4+ {[%clk 00:26:57]} {[%emt 00:00:19]} 51.
Kg5 {[%clk 00:29:03]} {[%emt 00:00:11]} Rc4 {[%clk 00:27:11]} {[%emt 00:00:17]}
52. Kh5 {[%clk 00:28:53]} {[%emt 00:00:38]} Kf6 {[%clk 00:26:13]} {[%emt
00:01:29]} 53. g5+ {[%clk 00:29:08]} {[%emt 00:00:15]} Kf5 {[%clk 00:26:42]}
{[%emt 00:00:02]} 54. b5 {[%clk 00:28:12]} {[%emt 00:01:26]} Rb4 {[%clk
00:26:45]} {[%emt 00:00:27]} 55. b6 {[%clk 00:28:21]} {[%emt 00:00:20]} Rb1
{[%clk 00:26:50]} {[%emt 00:00:25]} 56. Rf7+ {[%clk 00:28:45]} {[%emt
00:00:06]} Ke6 {[%clk 00:27:12]} {[%emt 00:00:08]} 57. Kg6 {[%clk 00:28:17]}
{[%emt 00:00:59]} Rb5 {[%clk 00:27:26]} {[%emt 00:00:16]} 58. b7 {[%clk
00:28:09]} {[%emt 00:00:37]} Kd5 {[%emt 00:00:34]} 1-0